fUSD/lending_fUSD_20251222
["ID","MTS","AMOUNT","RATE_DAILY","PERIOD"]
[399446386,1766362249629,-1000.0,0.00017021,2]
[399446387,1766362249641,-1000.0,0.00017021,2]
[399446388,1766362249651,-1000.0,0.00017021,2]
[399446389,1766362249660,-1000.0,0.00017021,2]
[399446390,1766362249671,-1000.0,0.00017021,2]
[399446391,1766362249681,-1000.0,0.00017021,2]
[399446392,1766362249691,-473.51090272,0.00017021,2]
[399446393,1766362249701,-1000.0,0.00017021,2]
[399446394,1766362249711,-1000.0,0.00017021,2]
[399446395,1766362249720,-1000.0,0.00017021,2]
[399446396,1766362249730,-1000.0,0.00017021,2]
[399446397,1766362249739,-1000.0,0.00017021,2]
[399446398,1766362249748,-1000.0,0.00017021,2]
[399446399,1766362249758,-1000.0,0.00017021,2]
[399446400,1766362249768,-1000.0,0.00017021,2]
[399446401,1766362249777,-1000.0,0.00017021,2]
[399446402,1766362249786,-1000.0,0.00017021,2]
[399446403,1766362249795,-517.55500559,0.00017021,2]
[399446404,1766362249806,-1000.0,0.00017021,2]
[399446405,1766362249815,-1000.0,0.00017021,2]
[399446406,1766362249824,-1000.0,0.00017021,2]
[399446407,1766362249834,-1000.0,0.00017021,2]
[399446408,1766362249843,-1000.0,0.00017021,2]
[399446409,1766362249852,-574.93563631,0.00017021,2]
[399446410,1766362249862,-1000.0,0.00017021,2]
[399446411,1766362249871,-1000.0,0.00017021,2]
[399446412,1766362249880,-1000.0,0.00017021,2]
[399446413,1766362249889,-1000.0,0.00017021,2]
[399446414,1766362249899,-1000.0,0.00017021,2]
[399446415,1766362249908,-1000.0,0.00017021,2]
[399446416,1766362249916,-1000.0,0.00017021,2]
[399446417,1766362249925,-281.0,0.0001705,2]
[399446418,1766362249934,-281.0,0.0001706,2]
[399446419,1766362249943,-281.0,0.00017065,2]
[399446420,1766362249952,-281.0,0.00017067,2]
[399446421,1766362249962,-281.0,0.00017076,2]
[399446422,1766362249971,-290.2758975,0.00017118,2]
[399446423,1766362249980,-281.0,0.00017141,2]
[399446424,1766362249989,-2465.22,0.00017204,2]
[399446425,1766362249998,-7000.0,0.0001721,2]
[399446426,1766362250007,-5288.0,0.00017279,2]
[399446427,1766362250016,-5288.0,0.00017389,2]
[399446428,1766362250027,-7000.0,0.0001745,2]
[399446429,1766362250036,-2465.22,0.00017478,2]
[399446430,1766362250046,-4000.0,0.00017478,2]
[399446431,1766362250056,-1580.20183557,0.00017478,2]
[399446432,1766362250066,-150.0,0.00017521,2]
[399446433,1766362250076,-209.36442742,0.00017521,2]
[399446434,1766362250086,-1607.25325449,0.00017534,2]
[399446435,1766362250096,-300.0,0.00017567,2]
[399446436,1766362250105,-1500.0,0.00017568,2]
[399446437,1766362250114,-911.01914661,0.00017568,2]
[399446438,1766362250123,-1500.0,0.00017568,2]
[399446439,1766362250133,-1146.74113398,0.00017568,2]
[399446440,1766362250142,-1500.0,0.00017568,2]
[399446441,1766362250151,-366.67059237,0.00017568,2]
[399446442,1766362250160,-1575.60861507,0.00017568,2]
[399446443,1766362250169,-1500.0,0.00017568,2]
[399446444,1766362250178,-1500.0,0.00017568,2]
[399446445,1766362250186,-1500.0,0.00017568,2]
[399446446,1766362250196,-1338.25743322,0.00017568,2]
[399446447,1766362250207,-1500.0,0.00017568,2]
[399446448,1766362250217,-1096.88102427,0.00017568,2]
[399446449,1766362250228,-1500.0,0.00017568,2]
[399446450,1766362250238,-1618.8093591,0.00017568,2]
[399446451,1766362250247,-1500.0,0.00017568,2]
[399446452,1766362250258,-1500.0,0.00017568,2]
[399446453,1766362250267,-501.48988543,0.00017568,2]
[399446454,1766362250276,-1500.0,0.00017568,2]
[399446455,1766362250285,-1500.0,0.00017568,2]
[399446456,1766362250296,-897.75313595,0.00017568,2]
[399446457,1766362250307,-1500.0,0.00017568,2]
[399446458,1766362250318,-1500.0,0.00017568,2]
[399446459,1766362250327,-1635.83054763,0.00017568,2]
[399446460,1766362250335,-1499.2035549,0.00017568,2]
[399446461,1766362250345,-847.55358378,0.00017568,2]
[399446462,1766362250354,-1500.0,0.00017568,2]
[399446463,1766362250362,-709.50912244,0.00017568,2]
[399446464,1766362250371,-1056.72332682,0.00017568,2]
[399446465,1766362250380,-169.31135743,0.00017568,2]
[399446466,1766362250389,-1500.0,0.00017568,2]
[399446467,1766362250398,-1500.0,0.00017568,2]
[399446468,1766362250407,-1500.0,0.00017568,2]
[399446469,1766362250416,-1500.0,0.00017568,2]
[399446470,1766362250425,-1000.0,0.000176,2]
[399446471,1766362250435,-500.0,0.00017644,2]
[399446472,1766362250444,-5288.0,0.0001765,2]
[399446473,1766362250453,-360.17,0.00017651,2]
[399446474,1766362250462,-422.67,0.00017662,2]
[399446475,1766362250471,-7000.0,0.000177,2]
[399446476,1766362250480,-1324.0,0.00017718,2]
[399446477,1766362250489,-342.81587097,0.00017737,14]
[399446478,1766362250499,-2465.22,0.00017752,2]
[399446479,1766362250509,-5888.0,0.00017795,2]
[399446480,1766362250518,-257.1,0.00017797,2]
[399446481,1766362250527,-5288.0,0.00017898,2]
[399446482,1766362250536,-5288.0,0.00017912,2]
[399446483,1766362250545,-322.6107,0.00017944,2]
[399446484,1766362250558,-151.0,0.00017944,2]
[399446485,1766362250567,-287.61899177,0.00017944,2]
[399446486,1766362250576,-7000.0,0.0001795,2]
[399446487,1766362250586,-5888.0,0.00017972,2]
[399446488,1766362250596,-5888.0,0.00017981,2]
[399446489,1766362250606,-300.0,0.00017997,2]
[399446490,1766362250615,-300.0,0.00017997,2]
[399446491,1766362250626,-666.0,0.00017997,2]
[399446492,1766362250636,-666.0,0.00017997,2]
[399446493,1766362250645,-300.0,0.00017997,2]
[399446494,1766362250655,-151.0,0.00017997,2]
[399446495,1766362250664,-147940.48101906,0.00017998,2]
[399446496,1766362250673,-300.0,0.00017999,2]
[399446497,1766362250683,-243.37225568,0.00017999,2]
[399446498,1766362250692,-666.0,0.00017999,2]
[399446499,1766362250701,-820576.98339716,0.00018,2]
[399446500,1766362250711,-42844.01227958,0.00018,2]
[399446501,1766362250722,-1185.66627314,0.00018,2]
[399446502,1766362250731,-129347.98785554,0.00018,2]
[399446503,1766362250740,-151.0,0.00018,2]
[399446504,1766362250749,-151.0,0.00018,2]
[399446505,1766362250759,-151.0,0.00018,2]
[399446506,1766362250768,-151.0,0.00018,2]
[399446507,1766362250777,-151.0,0.00018,2]
[399446508,1766362250787,-1126.423991,0.00018,2]
[399446509,1766362250797,-345.868097,0.00018,2]
[399446510,1766362250807,-1126.423991,0.00018,2]
[399446511,1766362250816,-345.868097,0.00018,2]
[399446512,1766362250825,-1126.423991,0.00018,2]
[399446513,1766362250834,-345.868097,0.00018,2]
[399446514,1766362250843,-1126.423997,0.00018,2]
[399446515,1766362250853,-345.868097,0.00018,2]
[399446516,1766362250862,-165.199225,0.00018,2]
[399446517,1766362250871,-165.199225,0.00018,2]
[399446518,1766362250880,-165.199225,0.00018,2]
[399446519,1766362250889,-165.199225,0.00018,2]
[399446520,1766362250898,-151.0,0.00018,2]
[399446521,1766362250907,-151.0,0.00018,2]
[399446522,1766362250916,-151.0,0.00018,2]
[399446523,1766362250925,-174.60482,0.00018,2]
[399446524,1766362250934,-151.0,0.00018,2]
[399446525,1766362250943,-151.0,0.00018,2]
[399446526,1766362250952,-2465.22,0.00018026,2]
[399446527,1766362250961,-3228.62638804,0.00018026,2]
[399446528,1766362250970,-232.7679899,0.00018068,2]
[399446529,1766362250980,-893.63,0.00018074,2]
[399446530,1766362250989,-1000.0,0.00018082,2]
[399446531,1766362250999,-1772.55333379,0.000181,2]
[399446532,1766362251008,-2000.0,0.00018116,2]
[399446533,1766362251017,-355.04970427,0.00018116,2]
[399446534,1766362251026,-2000.0,0.00018116,2]
[399446535,1766362251036,-2000.0,0.00018116,2]
[399446536,1766362251045,-2000.0,0.00018116,2]
[399446537,1766362251054,-580.23256601,0.00018116,2]
[399446538,1766362251064,-1931.23535355,0.00018116,2]
[399446539,1766362251074,-657.70110556,0.00018116,2]
[399446540,1766362251083,-2000.0,0.00018116,2]
[399446541,1766362251092,-2000.0,0.00018116,2]
[399446542,1766362251101,-2000.0,0.00018116,2]
[399446543,1766362251112,-756.32041405,0.00018116,2]
[399446544,1766362251121,-2000.0,0.00018116,2]
[399446545,1766362251130,-2000.0,0.00018116,2]
[399446546,1766362251140,-2000.0,0.00018116,2]
[399446547,1766362251149,-2000.0,0.00018116,2]
[399446548,1766362251159,-2000.0,0.00018116,2]
[399446549,1766362251168,-1864.55562986,0.00018116,2]
[399446550,1766362251177,-2000.0,0.00018116,2]
[399446551,1766362251187,-300.0,0.00018139,2]
[399446552,1766362251196,-171.4,0.00018245,2]
[399446553,1766362251206,-500.0,0.00018294,2]
[399446554,1766362251215,-2465.22,0.000183,2]
[399446555,1766362251224,-254.11256765,0.00018316,2]
[399446556,1766362251234,-500.0,0.00018355,2]
[399446557,1766362251243,-69723.26,0.00018356,2]
[399446558,1766362251252,-422.67,0.00018369,2]
[399446559,1766362251261,-3270.2,0.00018489,2]
[399446560,1766362251271,-322.20828001,0.000185,2]
[399446561,1766362251280,-2465.22,0.00018574,2]
[399446562,1766362251289,-411.45,0.00018611,2]
[399446563,1766362251299,-1080.39649573,0.00018664,2]
[399446564,1766362251311,-310.06251023,0.00018664,2]
[399446565,1766362251321,-1215.62813656,0.00018664,2]
[399446566,1766362251331,-1503.04548544,0.00018664,2]
[399446567,1766362251343,-2500.0,0.00018664,2]
[399446568,1766362251362,-2500.0,0.00018664,2]
[399446569,1766362251376,-1561.35018488,0.00018664,2]
[399446570,1766362251386,-1500.0,0.00018664,2]
[399446571,1766362251396,-2500.0,0.00018664,2]
[399446572,1766362251406,-2500.0,0.00018664,2]
[399446573,1766362251416,-1439.42444411,0.00018664,2]
[399446574,1766362251425,-2500.0,0.00018664,2]
[399446575,1766362251434,-2500.0,0.00018664,2]
[399446576,1766362251443,-1600.0,0.00018686,2]
[399446577,1766362251452,-256.29,0.00018731,2]
[399446578,1766362251461,-1000.0,0.0001876,2]
[399446579,1766362251470,-151.02,0.000188,2]
[399446580,1766362251479,-151.02,0.000188,2]
[399446581,1766362251488,-151.02,0.000188,2]
[399446582,1766362251498,-151.02,0.000188,2]
[399446583,1766362251508,-151.02,0.000188,2]
[399446584,1766362251518,-151.02,0.000188,2]
[399446585,1766362251529,-151.02,0.000188,2]
[399446586,1766362251538,-151.02,0.000188,2]
[399446587,1766362251548,-151.02,0.000188,2]
[399446588,1766362251560,-151.02,0.000188,2]
[399446589,1766362251570,-151.02,0.000188,2]
[399446590,1766362251579,-151.02,0.000188,2]
[399446591,1766362251589,-151.02,0.000188,2]
[399446592,1766362251599,-151.02,0.000188,2]
[399446593,1766362251608,-151.02,0.000188,2]
[399446594,1766362251617,-151.02,0.000188,2]
[399446595,1766362251627,-151.02,0.000188,2]
[399446596,1766362251636,-2465.4,0.00018848,2]
[399446597,1766362251645,-155.19771263,0.000189,2]
[399446598,1766362251654,-5148.35542899,0.00019,2]
[399446599,1766362251663,-1628.13897178,0.00019,2]
[399446600,1766362251673,-486.3165582,0.00019,2]
[399446601,1766362251682,-170248.85294246,0.00019,2]
[399446602,1766362251691,-300.0,0.00019,2]
[399446603,1766362251701,-356.84579956,0.0001901,7]
[399446604,1766362251710,-422.67,0.00019075,2]
[399446605,1766362251719,-256.29,0.00019106,2]
[399446606,1766362251729,-161.07232364,0.00019175,2]
[399446607,1766362251740,-20058.15,0.00019178,2]
[399446608,1766362251750,-151.0,0.00019178,2]
[399446609,1766362251759,-2829.286559,0.00019178,2]
[399446610,1766362251769,-2829.286559,0.00019178,2]
[399446611,1766362251779,-2829.286559,0.00019178,2]
[399446612,1766362251788,-2829.286559,0.00019178,2]
[399446613,1766362251797,-2829.286559,0.00019178,2]
[399446614,1766362251807,-2829.286559,0.00019178,2]
[399446615,1766362251817,-2829.286559,0.00019178,2]
[399446616,1766362251827,-2829.286559,0.00019178,2]
[399446617,1766362251836,-2829.286559,0.00019178,2]
[399446618,1766362251846,-2829.286559,0.00019178,2]
[399446619,1766362251855,-2829.286559,0.00019178,2]
[399446620,1766362251865,-2829.286559,0.00019178,2]
[399446621,1766362251874,-2829.286559,0.00019178,2]
[399446622,1766362251884,-2829.286559,0.00019178,2]
[399446623,1766362251894,-2829.286559,0.00019178,2]
[399446624,1766362251903,-2829.286559,0.00019178,2]
[399446625,1766362251912,-2829.286559,0.00019178,2]
[399446626,1766362251922,-2829.286559,0.00019178,2]
[399446627,1766362251931,-2829.286559,0.00019178,2]
[399446628,1766362251940,-2829.286559,0.00019178,2]
[399446629,1766362251950,-1500.0,0.00019212,2]
[399446630,1766362251959,-3000.0,0.00019212,2]
[399446631,1766362251969,-3000.0,0.00019212,2]
[399446632,1766362251978,-375.39357665,0.00019212,2]
[399446633,1766362251988,-773.6052175,0.00019212,2]
[399446634,1766362251998,-3000.0,0.00019212,2]
[399446635,1766362252008,-11599.82953462,0.00019249,2]
[399446636,1766362252019,-500.0,0.0001926,2]
[399446637,1766362252028,-334.5472959,0.00019313,2]
[399446638,1766362252039,-298.26089446,0.00019313,2]
[399446639,1766362252049,-1000.0,0.00019438,2]
[399446640,1766362252060,-256.29,0.0001948,2]
[399446641,1766362252071,-900.0,0.00019726,2]
[399446642,1766362252081,-3500.0,0.0001976,2]
[399446643,1766362252091,-1102.72166117,0.0001976,2]
[399446644,1766362252101,-3500.0,0.0001976,2]
[399446645,1766362252112,-151.12198165,0.00019855,2]
[399446646,1766362252122,-1000.0,0.00019943,7]
[399446647,1766362252132,-8428.98622975,0.0001995,15]
[399446648,1766362252141,-10877.62322293,0.0002,2]
[399446649,1766362252150,-1527.86571511,0.0002,2]
[399446650,1766362252160,-1460.27568423,0.0002,5]
[399446651,1766362252169,-8267.47383065,0.0002,2]
[399446652,1766362252178,-415603.07211162,0.0002,5]
[399446653,1766362252187,-1050.68027988,0.0002,2]
[399446654,1766362252198,-151.0,0.0002,2]
[399446655,1766362252208,-152.449645,0.0002,2]
[399446656,1766362252218,-186.129619,0.0002,2]
[399446657,1766362252228,-157.119013,0.0002,2]
[399446658,1766362252238,-345.868097,0.0002,2]
[399446659,1766362252248,-345.868097,0.0002,2]
[399446660,1766362252258,-345.868097,0.0002,2]
[399446661,1766362252268,-345.86809537,0.0002,2]
[399446662,1766362252278,-188.59099171,0.0002,20]
[399446663,1766362252287,-151.0,0.0002,2]
[399446664,1766362252296,-186.5,0.0002,2]
[399446665,1766362252307,-151.0,0.0002,2]
[399446666,1766362252316,-151.0,0.0002,2]
[399446667,1766362252326,-151.0,0.0002,2]
[399446668,1766362252335,-151.0,0.0002,2]
[399446669,1766362252345,-8720.0,0.0002001,2]
[399446670,1766362252354,-322.20828001,0.000201,2]
[399446671,1766362252364,-1000.0,0.00020116,2]
[399446672,1766362252374,-1000.0,0.00020187,2]
[399446673,1766362252384,-615.39180904,0.00020274,2]
[399446674,1766362252394,-3179.74852062,0.00020308,2]
[399446675,1766362252405,-4000.0,0.00020308,2]
[399446676,1766362252415,-1600.0,0.00020385,2]
[399446677,1766362252424,-3270.2,0.0002054,2]
[399446678,1766362252434,-191.85,0.00020548,2]
[399446679,1766362252443,-21439.35,0.00020548,2]
[399446680,1766362252454,-3456.0,0.00020603,2]
[399446681,1766362252464,-1326.0,0.00020603,2]
[399446682,1766362252473,-612.0,0.00020603,2]
[399446683,1766362252483,-1609.0,0.00020603,2]
[399446684,1766362252492,-1262.0,0.00020603,2]
[399446685,1766362252502,-518.0,0.00020603,2]
[399446686,1766362252512,-911.0,0.00020603,2]
[399446687,1766362252521,-1197.0,0.00020603,2]
[399446688,1766362252531,-6529.0,0.00020603,2]
[399446689,1766362252541,-2429.0,0.00020603,2]
[399446690,1766362252552,-4821.553,0.00020603,2]
[399446691,1766362252565,-346.92554585,0.00020682,2]
[399446692,1766362252575,-309.29654756,0.00020682,2]
[399446693,1766362252585,-274.3,0.00020685,2]
[399446694,1766362252595,-22571.15008706,0.000207,2]
[399446695,1766362252606,-2000.0,0.000207,2]
[399446696,1766362252616,-1000.0,0.00020795,2]
[399446697,1766362252626,-3772.44292813,0.00020856,2]
[399446698,1766362252638,-20000.0,0.00021,2]
[399446699,1766362252647,-160.0,0.00021,7]
[399446700,1766362252657,-350.0,0.00021,2]
[399446701,1766362252667,-1000.29777434,0.00021,2]
[399446702,1766362252676,-3227.3509517,0.00021068,2]
[399446703,1766362252708,-2394.46516311,0.00021068,2]
[399446704,1766362252719,-3957.24204253,0.00021068,2]
[399446705,1766362252754,-2887.55184266,0.00021068,2]
[399446706,1766362252764,-500.0,0.00021096,2]
[399446707,1766362252773,-274.3,0.00021096,2]
[399446708,1766362252784,-151.12198165,0.00021096,2]
[399446709,1766362252794,-250.0,0.00021348,2]
[399446710,1766362252805,-150.0,0.00021348,2]
[399446711,1766362252814,-152.0,0.00021348,2]
[399446712,1766362252825,-200.0,0.00021348,2]
[399446713,1766362252835,-200.0,0.00021348,2]
[399446714,1766362252845,-150.643,0.00021348,2]
[399446715,1766362252855,-217.814,0.00021348,2]
[399446716,1766362252865,-228.086,0.00021348,2]
[399446717,1766362252875,-250.0,0.00021348,2]
[399446718,1766362252885,-156.119,0.00021348,2]
[399446719,1766362252896,-250.0,0.00021348,2]
[399446720,1766362252906,-250.0,0.00021348,2]
[399446721,1766362252915,-211.428,0.00021348,2]
[399446722,1766362252925,-226.651,0.00021348,2]
[399446723,1766362252935,-166.0,0.00021348,2]
[399446724,1766362252946,-6353.08,0.0002137,2]
[399446725,1766362252956,-32636.33245444,0.000215,2]
[399446726,1766362252965,-322.20828001,0.000217,2]
[399446727,1766362252975,-5000.0,0.00021918,2]
[399446728,1766362252985,-151.0,0.00021918,2]
[399446729,1766362252995,-151.0,0.00021918,2]
[399446730,1766362253005,-151.0,0.00021918,2]
[399446731,1766362253015,-151.0,0.00021918,2]
[399446732,1766362253026,-4162.79387486,0.00022,2]
[399446733,1766362253037,-878.51,0.00022,7]
[399446734,1766362253047,-359.76179104,0.00022051,2]
[399446735,1766362253059,-320.74051982,0.00022051,2]
[399446736,1766362253070,-500.0,0.00022247,2]
[399446737,1766362253080,-151.12198165,0.00022337,2]
[399446738,1766362253090,-3270.2,0.00022591,2]
[399446739,1766362253100,-164.07,0.00022603,2]
[399446740,1766362253110,-1003.7958305,0.00023,2]
[399446741,1766362253120,-400.0,0.00023,2]
[399446742,1766362253132,-209.949731,0.00023028,2]
[399446743,1766362253142,-259.106732,0.00023028,2]
[399446744,1766362253153,-2575.94568229,0.000231,2]
[399446745,1766362253163,-322.20828001,0.000233,2]
[399446746,1766362253174,-373.07297731,0.0002342,2]
[399446747,1766362253185,-332.60791905,0.0002342,2]
[399446748,1766362253195,-200.0,0.000235,2]
[399446749,1766362253206,-151.12198165,0.00023578,2]
[399446750,1766362253216,-3456.0,0.00023603,2]
[399446751,1766362253227,-1326.0,0.00023603,2]
[399446752,1766362253239,-612.0,0.00023603,2]
[399446753,1766362253249,-1609.0,0.00023603,2]
[399446754,1766362253260,-1262.0,0.00023603,2]
[399446755,1766362253271,-518.0,0.00023603,2]
[399446756,1766362253282,-911.0,0.00023603,2]
[399446757,1766362253292,-1197.0,0.00023603,2]
[399446758,1766362253302,-6529.0,0.00023603,2]
[399446759,1766362253315,-2429.0,0.00023603,2]
[399446760,1766362253325,-4803.0,0.00023603,2]
[399446761,1766362253335,-500.0,0.00023897,2]
[399446762,1766362253346,-16627.43432061,0.00024,2]
[399446763,1766362253356,-1017.04205236,0.00024,2]
[399446764,1766362253367,-3600.0,0.00024,2]
[399446765,1766362253377,-1102.1270751,0.00024,2]
[399446766,1766362253387,-16145.49307443,0.00024,2]
[399446767,1766362253398,-420.18261734,0.0002421,2]
[399446768,1766362253408,-3680.73958964,0.0002421,2]
[399446769,1766362253418,-150.0,0.00024348,2]
[399446770,1766362253428,-150.0,0.00024348,2]
[399446771,1766362253439,-150.0,0.00024348,2]
[399446772,1766362253449,-150.0,0.00024348,2]
[399446773,1766362253460,-150.0,0.00024348,2]
[399446774,1766362253470,-150.0,0.00024348,2]
[399446775,1766362253481,-150.0,0.00024348,2]
[399446776,1766362253491,-150.0,0.00024348,2]
[399446777,1766362253502,-150.0,0.00024348,2]
[399446778,1766362253512,-150.0,0.00024348,2]
[399446779,1766362253524,-150.0,0.00024348,2]
[399446780,1766362253534,-150.0,0.00024348,2]
[399446781,1766362253545,-2000.0,0.000244,2]
[399446782,1766362253557,-3270.2,0.00024642,2]
[399446783,1766362253570,-595.07367707,0.0002465,2]
[399446784,1766362253581,-166.84933776,0.0002465,2]
[399446785,1766362253592,-248.64,0.00024658,2]
[399446786,1766362253602,-1000.0,0.00024658,2]
[399446787,1766362253614,-151.0,0.00024658,2]
[399446788,1766362253625,-151.0,0.00024658,2]
[399446789,1766362253635,-151.0,0.00024658,2]
[399446790,1766362253646,-386.87667747,0.00024789,2]
[399446791,1766362253656,-344.91441206,0.00024789,2]
[399446792,1766362253667,-500.0,0.00024799,2]
[399446793,1766362253677,-500.0,0.00024799,2]
[399446794,1766362253687,-500.0,0.00024799,2]
[399446795,1766362253698,-893.63,0.00024799,2]
[399446796,1766362253709,-893.63,0.00024799,2]
[399446797,1766362253721,-500.0,0.00024799,2]
[399446798,1766362253731,-500.0,0.00024799,2]
[399446799,1766362253742,-604607.176454,0.000248,2]
[399446800,1766362253753,-151.12198165,0.00024819,2]
[399446801,1766362253764,-500.0,0.00024899,2]
[399446802,1766362253776,-500.0,0.00024899,2]
[399446803,1766362253786,-403443.147246,0.000249,2]
[399446804,1766362253796,-322.20828001,0.000249,2]
[399446805,1766362253809,-416976.06827037,0.00025,2]
[399446806,1766362253823,-450.0,0.00025,2]
[399446807,1766362253834,-500.0,0.00025288,2]
[399446808,1766362253845,-151.12198165,0.0002606,2]
[399446809,1766362253855,-401.19111454,0.00026158,2]
[399446810,1766362253866,-357.6762453,0.00026158,2]
[399446811,1766362253877,-3456.0,0.00026603,2]
[399446812,1766362253887,-1326.0,0.00026603,2]
[399446813,1766362253898,-612.0,0.00026603,2]
[399446814,1766362253908,-1609.0,0.00026603,2]
[399446815,1766362253918,-1262.0,0.00026603,2]
[399446816,1766362253928,-518.0,0.00026603,2]
[399446817,1766362253940,-911.0,0.00026603,2]
[399446818,1766362253960,-1197.0,0.00026603,2]
[399446819,1766362253970,-6529.0,0.00026603,2]
[399446820,1766362253981,-2429.0,0.00026603,2]
[399446821,1766362253991,-4803.0,0.00026603,2]
[399446822,1766362254001,-1000.0,0.00026676,2]
[399446823,1766362254011,-3270.2,0.00026693,2]
[399446824,1766362254021,-500.0,0.00026699,2]
[399446825,1766362254033,-500.0,0.00027,2]
[399446826,1766362254043,-151.12198165,0.00027301,2]
[399446827,1766362254053,-150.0,0.00027348,2]
[399446828,1766362254064,-150.0,0.00027348,2]
[399446829,1766362254075,-150.0,0.00027348,2]
[399446830,1766362254085,-150.0,0.00027348,2]
[399446831,1766362254101,-150.0,0.00027348,2]
[399446832,1766362254111,-150.0,0.00027348,2]
[399446833,1766362254122,-150.0,0.00027348,2]
[399446834,1766362254132,-150.0,0.00027348,2]
[399446835,1766362254143,-150.0,0.00027348,2]
[399446836,1766362254153,-150.0,0.00027348,2]
[399446837,1766362254163,-150.0,0.00027369,2]
[399446838,1766362254174,-447.6,0.00027397,5]
[399446839,1766362254184,-415.4,0.00027397,2]
[399446840,1766362254195,-452.8,0.00027397,3]
[399446841,1766362254206,-473.4,0.00027397,7]
[399446842,1766362254220,-250.94689593,0.00027397,3]
[399446843,1766362254230,-500.0,0.00027397,14]
[399446844,1766362254240,-248.64,0.00027397,2]
[399446845,1766362254250,-300.0,0.00027397,2]
[399446846,1766362254261,-486.011543,0.00027397,7]
[399446847,1766362254271,-486.011543,0.00027397,7]
[399446848,1766362254281,-486.011543,0.00027397,7]
[399446849,1766362254291,-486.011543,0.00027397,7]
[399446850,1766362254302,-486.011543,0.00027397,7]
[399446851,1766362254315,-486.011543,0.00027397,7]
[399446852,1766362254326,-486.011543,0.00027397,7]
[399446853,1766362254336,-486.011543,0.00027397,7]
[399446854,1766362254347,-486.011543,0.00027397,7]
[399446855,1766362254358,-486.011543,0.00027397,7]
[399446856,1766362254369,-486.011543,0.00027397,7]
[399446857,1766362254379,-486.011543,0.00027397,7]
[399446858,1766362254389,-486.011543,0.00027397,7]
[399446859,1766362254399,-486.011543,0.00027397,7]
[399446860,1766362254409,-486.011543,0.00027397,7]
[399446861,1766362254419,-486.011543,0.00027397,7]
[399446862,1766362254429,-486.011543,0.00027397,7]
[399446863,1766362254439,-486.011543,0.00027397,7]
[399446864,1766362254449,-486.011543,0.00027397,7]
[399446865,1766362254459,-486.01155,0.00027397,7]
[399446866,1766362254470,-184.677202,0.00027397,7]
[399446867,1766362254481,-199.95849396,0.000275,2]
[399446868,1766362254490,-546.24113058,0.000275,2]
[399446869,1766362254709,-416.03518578,0.00027527,2]
[399446870,1766362254750,-370.91026638,0.00027527,2]
[399446871,1766362254760,-14375.1,0.00027671,2]
[399446872,1766362254771,-878.51,0.000278,7]
[399446873,1766362254780,-4547.28318666,0.000279,2]
[399446874,1766362254790,-70906.84469599,0.00028,2]
[399446875,1766362254800,-50562.00294701,0.00028,2]
[399446876,1766362254811,-5005.72303799,0.00028,2]
[399446877,1766362254820,-2000.0,0.000281,2]
[399446878,1766362254830,-164.07,0.00028493,2]
[399446879,1766362254839,-151.12198165,0.00028542,2]
[399446880,1766362254849,-3270.2,0.00028745,2]
[399446881,1766362254859,-431.42848765,0.00028896,2]
[399446882,1766362254868,-384.63394623,0.00028896,2]
[399446883,1766362254878,-550.0,0.00029,2]
[399446884,1766362254887,-3456.0,0.00029603,2]
[399446885,1766362254897,-1326.0,0.00029603,2]